fUSD/lending_fUSD_20241223
["ID","MTS","AMOUNT","RATE_DAILY","PERIOD"]
[346376805,1734923440693,-1557.13316611,0.00019499,2]
[346376806,1734923440702,-168.88331867,0.00019499,2]
[346376807,1734923440712,-1557.13316611,0.00019499,2]
[346376808,1734923440721,-1557.13316611,0.00019499,2]
[346376809,1734923440731,-1557.13316611,0.000195,2]
[346376810,1734923440741,-1557.13316611,0.000195,2]
[346376811,1734923440750,-1557.13316611,0.000195,2]
[346376812,1734923440759,-524.9736445,0.000195,2]
[346376813,1734923440768,-5800.0,0.000195,2]
[346376814,1734923440777,-184.78777226,0.000195,2]
[346376815,1734923440786,-184.78777226,0.000195,2]
[346376816,1734923440796,-184.78777226,0.000195,2]
[346376817,1734923440806,-184.78,0.000195,2]
[346376818,1734923440816,-512.82265874,0.000195,2]
[346376819,1734923440825,-318.28297629,0.000195,2]
[346376820,1734923440835,-150.0,0.00019518,4]
[346376821,1734923440844,-150.0,0.00019519,4]
[346376822,1734923440853,-1000.0,0.00019534,2]
[346376823,1734923440862,-1000.0,0.00019534,2]
[346376824,1734923440872,-1000.0,0.00019534,2]
[346376825,1734923440881,-1000.0,0.00019534,2]
[346376826,1734923440891,-1000.0,0.00019534,2]
[346376827,1734923440900,-1000.0,0.00019534,2]
[346376828,1734923440909,-1000.0,0.00019534,2]
[346376829,1734923440919,-1000.0,0.00019534,2]
[346376830,1734923440928,-1000.0,0.00019534,2]
[346376831,1734923440937,-1000.0,0.00019534,2]
[346376832,1734923440946,-1000.0,0.00019534,2]
[346376833,1734923440955,-1000.0,0.00019534,2]
[346376834,1734923440964,-1000.0,0.00019534,2]
[346376835,1734923440974,-1000.0,0.00019534,2]
[346376836,1734923440984,-1000.0,0.00019534,2]
[346376837,1734923440993,-1000.0,0.00019534,2]
[346376838,1734923441002,-1000.0,0.00019534,2]
[346376839,1734923441012,-1000.0,0.00019534,2]
[346376840,1734923441021,-1000.0,0.00019534,2]
[346376841,1734923441031,-1000.0,0.00019534,2]
[346376842,1734923441039,-1000.0,0.00019534,2]
[346376843,1734923441049,-1000.0,0.00019534,2]
[346376844,1734923441058,-1000.0,0.00019534,2]
[346376845,1734923441068,-963.00167803,0.00019534,2]
[346376846,1734923441077,-767.84,0.00019536,2]
[346376847,1734923441086,-150.0,0.00019553,4]
[346376848,1734923441096,-182.10734614,0.00019562,2]
[346376849,1734923441262,-501.43939903,0.00019573,2]
[346376850,1734923441273,-500.0,0.00019573,2]
[346376851,1734923441283,-500.0,0.00019573,2]
[346376852,1734923441293,-500.89531538,0.00019573,2]
[346376853,1734923441303,-159.74298944,0.00019573,2]
[346376854,1734923441313,-500.0,0.00019573,2]
[346376855,1734923441322,-500.0,0.00019573,2]
[346376856,1734923441332,-500.42433932,0.00019573,2]
[346376857,1734923441341,-504.92020399,0.00019573,2]
[346376858,1734923441351,-150.0,0.00019589,4]
[346376859,1734923441362,-150.0,0.00019589,4]
[346376860,1734923441372,-150.0,0.00019589,4]
[346376861,1734923441381,-26984.5997021,0.00019597,7]
[346376862,1734923441391,-15430.8101883,0.00019597,2]
[346376863,1734923441401,-113335.65809055,0.00019599,2]
[346376864,1734923441410,-191.26845708,0.00019599,2]
[346376865,1734923441420,-500.0,0.00019599,2]
[346376866,1734923441430,-500.0,0.00019599,2]
[346376867,1734923441440,-500.0,0.00019599,2]
[346376868,1734923441450,-500.0,0.00019599,2]
[346376869,1734923441460,-505.25924312,0.00019599,2]
[346376870,1734923441469,-507.43964572,0.00019599,2]
[346376871,1734923441479,-500.0,0.00019599,2]
[346376872,1734923441488,-500.0,0.00019599,2]
[346376873,1734923441498,-500.0,0.00019599,2]
[346376874,1734923441507,-500.0,0.00019599,2]
[346376875,1734923441516,-504.63681208,0.00019599,2]
[346376876,1734923441525,-500.0,0.00019599,2]
[346376877,1734923441534,-500.0,0.00019599,2]
[346376878,1734923441544,-500.0,0.00019599,2]
[346376879,1734923441554,-506.81609514,0.00019599,2]
[346376880,1734923441564,-500.0,0.00019599,2]
[346376881,1734923441574,-500.0,0.00019599,2]
[346376882,1734923441584,-505.7384103,0.00019599,2]
[346376883,1734923441593,-500.0,0.00019599,2]
[346376884,1734923441603,-503.87306982,0.00019599,2]
[346376885,1734923441612,-500.0,0.00019599,2]
[346376886,1734923441621,-500.0,0.00019599,2]
[346376887,1734923441631,-502.84958028,0.00019599,2]
[346376888,1734923441640,-500.0,0.00019599,2]
[346376889,1734923441649,-500.0,0.00019599,2]
[346376890,1734923441658,-503.72844406,0.00019599,2]
[346376891,1734923441667,-500.0,0.00019599,2]
[346376892,1734923441676,-500.0,0.00019599,2]
[346376893,1734923441686,-505.11798085,0.00019599,2]
[346376894,1734923441695,-500.0,0.00019599,2]
[346376895,1734923441704,-500.0,0.00019599,2]
[346376896,1734923441713,-500.0,0.00019599,2]
[346376897,1734923441723,-501.7647614,0.00019599,2]
[346376898,1734923441732,-508.80129322,0.00019599,2]
[346376899,1734923441741,-504.07609417,0.00019599,2]
[346376900,1734923441750,-500.0,0.00019599,2]
[346376901,1734923441760,-500.0,0.00019599,2]
[346376902,1734923441769,-505.21664846,0.00019599,2]
[346376903,1734923441779,-500.0,0.00019599,2]
[346376904,1734923441788,-502.0512992,0.00019599,2]
[346376905,1734923441798,-500.0,0.00019599,2]
[346376906,1734923441810,-501.93969763,0.00019599,2]
[346376907,1734923441820,-502.6933383,0.00019599,2]
[346376908,1734923441829,-505.03259398,0.00019599,2]
[346376909,1734923441839,-500.0,0.00019599,2]
[346376910,1734923441848,-508.24411518,0.00019599,2]
[346376911,1734923441859,-504.11470071,0.00019599,2]
[346376912,1734923441868,-506.13907165,0.00019599,2]
[346376913,1734923441877,-507.68039408,0.00019599,2]
[346376914,1734923441886,-504.29051318,0.00019599,2]
[346376915,1734923441896,-501.55125334,0.00019599,2]
[346376916,1734923441906,-501.62737106,0.00019599,2]
[346376917,1734923441915,-502.17855365,0.00019599,2]
[346376918,1734923441925,-504.03417187,0.00019599,2]
[346376919,1734923441934,-502.80258462,0.00019599,2]
[346376920,1734923441944,-513.4105581,0.00019599,2]
[346376921,1734923441954,-500.0,0.00019599,2]
[346376922,1734923441963,-507.62725629,0.00019599,2]
[346376923,1734923441972,-500.0,0.00019599,2]
[346376924,1734923441982,-506.21116522,0.00019599,2]
[346376925,1734923441991,-500.0,0.00019599,2]
[346376926,1734923442001,-803.71,0.00019599,2]
[346376927,1734923442010,-500.0,0.00019599,2]
[346376928,1734923442020,-500.0,0.00019599,2]
[346376929,1734923442029,-500.0,0.00019599,2]
[346376930,1734923442039,-502.86780974,0.00019599,2]
[346376931,1734923442048,-513.61530572,0.00019599,2]
[346376932,1734923442058,-500.0,0.00019599,2]
[346376933,1734923442067,-500.0,0.00019599,2]
[346376934,1734923442076,-500.0,0.00019599,2]
[346376935,1734923442086,-500.0,0.00019599,2]
[346376936,1734923442095,-504.43766124,0.00019599,2]
[346376937,1734923442104,-500.0,0.00019599,2]
[346376938,1734923442113,-501.36342469,0.00019599,2]
[346376939,1734923442123,-500.0,0.00019599,2]
[346376940,1734923442134,-500.0,0.00019599,2]
[346376941,1734923442143,-782.38,0.00019599,2]
[346376942,1734923442153,-500.0,0.00019599,2]
[346376943,1734923442162,-500.0,0.00019599,2]
[346376944,1734923442171,-500.0,0.00019599,2]
[346376945,1734923442180,-500.0,0.00019599,2]
[346376946,1734923442190,-500.0,0.00019599,2]
[346376947,1734923442201,-500.0,0.00019599,2]
[346376948,1734923442211,-510.24736023,0.00019599,2]
[346376949,1734923442220,-500.0,0.00019599,2]
[346376950,1734923442229,-512.27392649,0.00019599,2]
[346376951,1734923442239,-500.0,0.00019599,2]
[346376952,1734923442249,-500.0,0.00019599,2]
[346376953,1734923442258,-500.0,0.00019599,2]
[346376954,1734923442268,-500.0,0.00019599,2]
[346376955,1734923442280,-500.0,0.00019599,2]
[346376956,1734923442290,-500.0,0.00019599,2]
[346376957,1734923442302,-500.0,0.00019599,2]
[346376958,1734923442312,-500.0,0.00019599,2]
[346376959,1734923442322,-500.0,0.00019599,2]
[346376960,1734923442331,-260.50038924,0.00019599,2]
[346376961,1734923442341,-500.0,0.00019599,2]
[346376962,1734923442351,-500.0,0.00019599,2]
[346376963,1734923442361,-500.0,0.00019599,2]
[346376964,1734923442372,-412.16276482,0.00019599,2]
[346376965,1734923442382,-500.0,0.00019599,2]
[346376966,1734923442391,-500.0,0.00019599,2]
[346376967,1734923442401,-749.84,0.00019599,2]
[346376968,1734923442411,-504.02212258,0.00019599,2]
[346376969,1734923442420,-500.0,0.00019599,2]
[346376970,1734923442430,-502.97424383,0.00019599,2]
[346376971,1734923442440,-504.03857432,0.00019599,2]
[346376972,1734923442449,-500.0,0.00019599,2]
[346376973,1734923442459,-500.0,0.00019599,2]
[346376974,1734923442468,-500.0,0.00019599,2]
[346376975,1734923442478,-626.96,0.00019599,2]
[346376976,1734923442488,-500.0,0.00019599,2]
[346376977,1734923442498,-507.89904507,0.00019599,2]
[346376978,1734923442507,-508.85565619,0.00019599,2]
[346376979,1734923442517,-503.43863896,0.00019599,2]
[346376980,1734923442526,-500.0,0.00019599,2]
[346376981,1734923442536,-500.0,0.00019599,2]
[346376982,1734923442545,-150.0,0.00019599,2]
[346376983,1734923442556,-500.0,0.00019599,2]
[346376984,1734923442566,-500.0,0.00019599,2]
[346376985,1734923442576,-500.0,0.00019599,2]
[346376986,1734923442585,-2462.45005509,0.00019599,2]
[346376987,1734923442594,-500.0,0.00019599,2]
[346376988,1734923442604,-500.0,0.00019599,2]
[346376989,1734923442613,-500.0,0.00019599,2]
[346376990,1734923442623,-500.0,0.00019599,2]
[346376991,1734923442632,-823.74,0.00019599,2]
[346376992,1734923442641,-500.0,0.00019599,2]
[346376993,1734923442651,-500.0,0.00019599,2]
[346376994,1734923442661,-500.0,0.00019599,2]
[346376995,1734923442670,-500.0,0.00019599,2]
[346376996,1734923442680,-500.0,0.00019599,2]
[346376997,1734923442690,-500.0,0.00019599,2]
[346376998,1734923442699,-500.0,0.00019599,2]
[346376999,1734923442708,-500.0,0.00019599,2]
[346377000,1734923442719,-500.0,0.00019599,2]
[346377001,1734923442728,-500.0,0.00019599,2]
[346377002,1734923442737,-500.0,0.00019599,2]
[346377003,1734923442747,-500.0,0.00019599,2]
[346377004,1734923442756,-500.0,0.00019599,2]
[346377005,1734923442765,-506.76302302,0.00019599,2]
[346377006,1734923442775,-500.0,0.00019599,2]
[346377007,1734923442784,-500.0,0.00019599,2]
[346377008,1734923442794,-500.0,0.00019599,2]
[346377009,1734923442803,-513.25618304,0.00019599,2]
[346377010,1734923442813,-500.0,0.00019599,2]
[346377011,1734923442823,-500.0,0.00019599,2]
[346377012,1734923442832,-500.0,0.00019599,2]
[346377013,1734923442842,-500.0,0.00019599,2]
[346377014,1734923442851,-500.0,0.00019599,2]
[346377016,1734923442860,-500.0,0.00019599,2]
[346377017,1734923442870,-500.0,0.00019599,2]
[346377018,1734923442879,-500.0,0.00019599,2]
[346377019,1734923442889,-500.0,0.00019599,2]
[346377020,1734923442898,-500.0,0.00019599,2]
[346377021,1734923442907,-500.0,0.00019599,2]
[346377022,1734923442917,-500.0,0.00019599,2]
[346377023,1734923442926,-500.0,0.00019599,2]
[346377024,1734923442936,-500.0,0.00019599,2]
[346377025,1734923442945,-500.0,0.00019599,2]
[346377026,1734923442954,-500.0,0.00019599,2]
[346377027,1734923442964,-500.0,0.00019599,2]
[346377028,1734923442973,-717.04,0.00019599,2]
[346377029,1734923442982,-500.0,0.00019599,2]
[346377030,1734923442992,-500.0,0.00019599,2]
[346377031,1734923443001,-500.0,0.00019599,2]
[346377032,1734923443010,-500.0,0.00019599,2]
[346377033,1734923443019,-500.0,0.00019599,2]
[346377034,1734923443029,-500.0,0.00019599,2]
[346377035,1734923443038,-500.0,0.00019599,2]
[346377036,1734923443048,-500.0,0.00019599,2]
[346377037,1734923443058,-500.0,0.00019599,2]
[346377038,1734923443067,-714.36,0.00019599,2]
[346377039,1734923443076,-500.0,0.00019599,2]
[346377040,1734923443085,-500.0,0.00019599,2]
[346377041,1734923443095,-937.84,0.00019599,2]
[346377042,1734923443104,-762.53,0.00019599,2]
[346377043,1734923443114,-500.0,0.00019599,2]
[346377044,1734923443123,-410.72343902,0.00019599,2]
[346377045,1734923443133,-500.0,0.00019599,2]
[346377046,1734923443142,-500.0,0.00019599,2]
[346377047,1734923443152,-500.0,0.00019599,2]
[346377048,1734923443161,-500.0,0.00019599,2]
[346377049,1734923443171,-500.0,0.00019599,2]
[346377050,1734923443180,-500.0,0.00019599,2]
[346377051,1734923443190,-500.0,0.00019599,2]
[346377052,1734923443202,-542.61,0.00019599,2]
[346377053,1734923443211,-500.0,0.00019599,2]
[346377054,1734923443220,-500.0,0.00019599,2]
[346377055,1734923443229,-500.0,0.00019599,2]
[346377056,1734923443239,-641.41,0.00019599,2]
[346377057,1734923443249,-919.28,0.00019599,2]
[346377058,1734923443258,-1075.46,0.00019599,2]
[346377059,1734923443267,-500.0,0.00019599,2]
[346377060,1734923443278,-500.0,0.00019599,2]
[346377061,1734923443287,-500.0,0.00019599,2]
[346377062,1734923443296,-500.0,0.00019599,2]
[346377063,1734923443307,-500.0,0.00019599,2]
[346377064,1734923443317,-500.0,0.00019599,2]
[346377065,1734923443326,-500.0,0.00019599,2]
[346377066,1734923443335,-500.0,0.00019599,2]
[346377067,1734923443345,-620.18,0.00019599,2]
[346377068,1734923443354,-500.0,0.00019599,2]
[346377069,1734923443363,-500.0,0.00019599,2]
[346377070,1734923443372,-500.0,0.00019599,2]
[346377071,1734923443381,-877.16,0.00019599,2]
[346377072,1734923443391,-500.0,0.00019599,2]
[346377073,1734923443400,-500.0,0.00019599,2]
[346377074,1734923443410,-500.0,0.00019599,2]
[346377075,1734923443419,-500.0,0.00019599,2]
[346377076,1734923443428,-641.84,0.00019599,2]
[346377077,1734923443437,-500.0,0.00019599,2]
[346377078,1734923443446,-545.47,0.00019599,2]
[346377079,1734923443455,-500.0,0.00019599,2]
[346377080,1734923443465,-1172.17,0.00019599,2]
[346377082,1734923443474,-500.0,0.00019599,2]
[346377084,1734923443484,-513.91,0.00019599,2]
[346377086,1734923443493,-805.08,0.00019599,2]
[346377088,1734923443502,-3783.72,0.00019599,2]
[346377090,1734923443512,-702.71,0.00019599,2]
[346377091,1734923443521,-500.0,0.00019599,2]
[346377093,1734923443530,-500.0,0.00019599,2]
[346377095,1734923443539,-500.0,0.00019599,2]
[346377096,1734923443549,-2025.27,0.00019599,2]
[346377098,1734923443560,-1018.26,0.00019599,2]
[346377100,1734923443569,-523.07,0.00019599,2]
[346377102,1734923443578,-500.0,0.00019599,2]
[346377103,1734923443587,-537.29,0.00019599,2]
[346377105,1734923443596,-500.0,0.00019599,2]
[346377106,1734923443606,-500.0,0.00019599,2]
[346377108,1734923443615,-1175.8,0.00019599,2]
[346377109,1734923443624,-677.61,0.00019599,2]
[346377110,1734923443633,-1111.25,0.00019599,2]
[346377111,1734923443643,-500.0,0.00019599,2]
[346377112,1734923443653,-500.0,0.00019599,2]
[346377113,1734923443668,-500.0,0.00019599,2]
[346377114,1734923443678,-500.0,0.00019599,2]
[346377115,1734923443689,-541.19,0.00019599,2]
[346377116,1734923443700,-500.0,0.00019599,2]
[346377117,1734923443709,-532.62,0.00019599,2]
[346377118,1734923443719,-691.27,0.00019599,2]
[346377119,1734923443728,-300.0,0.00019599,2]
[346377120,1734923443737,-378.86774927,0.00019599,2]
[346377121,1734923443746,-300.0,0.00019599,2]
[346377122,1734923443756,-300.0,0.00019599,2]
[346377123,1734923443765,-666.0,0.00019599,2]
[346377124,1734923443774,-17025773.38819165,0.000196,2]
[346377125,1734923444318,-158191.98060279,0.000196,2]
[346377126,1734923444659,-188.68,0.00019398,2]
[346377127,1734923444669,-500.0,0.00019399,2]
[346377128,1734923444678,-13245.12590325,0.000196,2]
[346377129,1734923444760,-777.12919889,0.000196,2]
[346377130,1734923444772,-5848.33483648,0.000196,2]
[346377131,1734923444783,-1486.46663555,0.000196,2]
[346377132,1734923444795,-8067.553624,0.000196,2]
[346377133,1734923444809,-666.31210001,0.000196,2]
[346377134,1734923445238,-500.0,0.00019399,2]
[346377135,1734923445250,-2277.95553658,0.000194,2]
[346377136,1734923445259,-10917.46865959,0.000196,2]
[346377137,1734923445273,-1228.22178705,0.000196,2]
[346377138,1734923445307,-150.0,0.00019178,2]
[346377139,1734923445317,-162.65249985,0.00019399,2]
[346377140,1734923445329,-337.34750015,0.00019399,2]
[346377141,1734923445338,-42.15250485,0.00019599,2]
[346377142,1734923445350,-595.86749515,0.00019599,2]
[346377143,1734923445360,-1730.32224655,0.000196,2]
[346377144,1734923445372,-527.73389944,0.000196,2]
[346377169,1734923446001,-499.73,0.00018989,2]
[346377171,1734923446010,-500.0,0.00019399,2]
[346377173,1734923446020,-100.269955,0.000196,2]
[346377176,1734923446031,-745.7939672,0.000196,2]
[346377177,1734923446043,-246569.11633367,0.000196,2]
[346377178,1734923446056,-153883.48889502,0.000196,2]
[346377179,1734923446072,-385.0,0.000196,2]
[346377180,1734923446279,-209563.51121851,0.000196,2]
[346377181,1734923446292,-285.26079803,0.000196,2]
[346377182,1734923630421,-250.0,0.0002,60]
[346377183,1734923630450,-300.0,0.0002,90]
[346377184,1734923630483,-1109.51627205,0.0002,60]
[346377185,1734923724193,-28340.48372795,0.0002,16]
[346377186,1734923745108,-9039.75688334,0.0002,16]
[346377187,1734923745153,-11920.48623332,0.0002,16]
[346377190,1734924311764,151.10396071,0.0002,16]
[346377191,1734924328807,8137.94241525,9e-05,2]
[346377192,1734924364502,154.78,0.00018263,30]
[346377193,1734924404471,-507.02977802,0.00013,2]
[346377195,1734924459722,304.54,0.00010137,2]
[346377203,1734924602775,150.0,0.00010137,2]
[346377204,1734924602985,245.96077347,0.00010137,2]
[346377215,1734924632147,-85660.15183195,0.00013,2]
[346377216,1734924632246,-16226.9897012,0.00013,2]
[346377217,1734924632257,-594.15527298,0.00013,2]
[346377218,1734924632398,-3709.30688129,0.00013,2]
[346377219,1734924632410,-378.98345466,0.00013,2]
[346377220,1734924632421,-2607.38371863,0.00013,2]
[346377221,1734924632433,-31392.60434455,0.00013,2]
[346377222,1734924632444,-953.48,0.00013,2]
[346377227,1734924638381,-914.94104856,0.00013,2]
[346377228,1734924638393,-25230.99149926,0.00013,2]
[346377229,1734924638405,-2451.65452132,0.00016021,2]
[346377230,1734924638414,-590.23,0.00016121,2]
[346377231,1734924638423,-304.54,0.00016813,2]
[346377232,1734924638433,-150.0,0.0001763,2]
[346377233,1734924638442,-150.0,0.0001763,2]
[346377234,1734924638451,-150.0,0.0001763,2]
[346377235,1734924638460,-150.0,0.00017808,2]
[346377236,1734924638469,-150.0,0.00017957,2]
[346377237,1734924638478,-150.0,0.00017986,2]
[346377238,1734924638488,-650.44,0.00018028,2]
[346377240,1734924638497,-150.0,0.00018164,2]
[346377242,1734924638507,-800.0,0.00018274,2]
[346377243,1734924638516,-150.0,0.00018283,2]
[346377244,1734924638527,-150.0,0.00018283,2]
[346377246,1734924638542,-150.0,0.00018342,2]
[346377248,1734924638553,-590.23,0.00018385,2]
[346377250,1734924638563,-250.0,0.0001839,2]
[346377252,1734924638579,-1000.0,0.00018401,2]
[346377254,1734924638589,-250.0,0.00018472,2]
[346377255,1734924638599,-243.6,0.00018478,2]
[346377256,1734924638609,-150.0,0.00018521,2]
[346377257,1734924638618,-150.0,0.0001861,2]
[346377258,1734924638628,-165.27,0.00018683,2]
[346377259,1734924638638,-150.0,0.00018699,2]
[346377260,1734924638647,-404.09,0.00018819,2]
[346377261,1734924638657,-150.0,0.00018877,2]
[346377262,1734924638666,-1265.0,0.00018919,2]
[346377263,1734924638675,-3887.0,0.00018919,2]
[346377264,1734924638684,-635.0,0.00018919,2]
[346377265,1734924638694,-242.838,0.00018919,2]
[346377266,1734924638703,-2011.0,0.00018919,2]
[346377267,1734924638712,-150.0,0.00018936,2]
[346377268,1734924638722,-150.0,0.00018936,2]
[346377269,1734924638732,-259.531,0.00019,2]
[346377270,1734924638741,-1198.09124738,0.0001902,5]
[346377271,1734924638750,-150.0,0.00019055,2]
[346377272,1734924638759,-506.2,0.00019068,2]
[346377273,1734924638768,-207.39127643,0.000191,2]
[346377274,1734924638777,-207.39127643,0.000191,2]
[346377275,1734924638786,-207.39127643,0.000191,2]
[346377276,1734924638795,-207.39127643,0.000191,2]
[346377277,1734924638805,-207.39127643,0.000191,2]
[346377278,1734924638814,-207.39127643,0.000191,2]
[346377279,1734924638827,-207.39127643,0.000191,2]
[346377280,1734924638836,-207.39127643,0.000191,2]
[346377281,1734924638846,-342.18,0.00019178,2]
[346377282,1734924638855,-207.39127643,0.00019188,2]
[346377283,1734924638865,-150.0,0.00019233,4]
[346377284,1734924638874,-150.0,0.00019263,4]
[346377285,1734924638884,-152.0,0.00019268,3]
[346377286,1734924638893,-491.97,0.00019272,2]
[346377287,1734924638902,-22675.58398448,0.0001928,2]
[346377288,1734924638911,-11691.95911606,0.0001928,2]
[346377289,1734924638921,-182.10734614,0.00019288,2]
[346377290,1734924638929,-500.0,0.00019296,2]
[346377291,1734924638939,-1302.27,0.00019296,2]
[346377292,1734924638948,-981.99,0.00019296,2]
[346377293,1734924638957,-1018.45,0.00019296,2]
[346377294,1734924638966,-500.0,0.00019296,2]
[346377295,1734924638975,-4849.58,0.00019296,2]
[346377296,1734924638984,-605.15,0.00019296,2]
[346377297,1734924638993,-1414.69,0.00019296,2]
[346377298,1734924639002,-1618.97,0.00019296,2]
[346377299,1734924639012,-500.0,0.00019296,2]
[346377300,1734924639021,-2671.05,0.00019296,2]
[346377301,1734924639030,-2837.45,0.00019296,2]
[346377302,1734924639040,-1214.87,0.00019296,2]
[346377303,1734924639050,-500.0,0.00019296,2]
[346377304,1734924639059,-882.17,0.00019296,2]
[346377305,1734924639072,-2000.82,0.00019296,2]
[346377306,1734924639081,-2383.62,0.00019296,2]
[346377307,1734924639090,-1385.03,0.00019296,2]
[346377308,1734924639100,-1000.34,0.00019296,2]
[346377309,1734924639110,-500.0,0.00019296,2]
[346377310,1734924639119,-737.98,0.00019296,2]
[346377311,1734924639128,-7032.76,0.00019296,2]
[346377312,1734924639138,-500.0,0.00019296,2]
[346377313,1734924639147,-500.0,0.00019296,2]
[346377314,1734924639156,-852.22,0.00019296,2]
[346377315,1734924639166,-4366.9415,0.00019297,2]
[346377316,1734924639175,-507.8013,0.00019298,2]
[346377317,1734924639184,-266.1363,0.00019299,2]
[346377318,1734924639193,-207.39127643,0.00019344,2]
[346377319,1734924639202,-500.0,0.00019396,2]
[346377320,1734924639211,-500.0,0.00019396,2]
[346377321,1734924639220,-500.0,0.00019396,2]
[346377322,1734924639229,-500.0,0.00019396,2]
[346377323,1734924639238,-500.0,0.00019396,2]
[346377324,1734924639247,-544.44,0.00019396,2]
[346377325,1734924639256,-500.0,0.00019396,2]
[346377326,1734924639265,-502.54953715,0.00019396,2]
[346377327,1734924639275,-588.09,0.00019396,2]
[346377328,1734924639283,-500.0,0.00019396,2]
[346377329,1734924639293,-500.0,0.00019396,2]
[346377330,1734924639303,-500.0,0.00019396,2]
[346377331,1734924639311,-1239.55,0.00019396,2]
[346377332,1734924639324,-500.0,0.00019396,2]
[346377333,1734924639333,-510.26125798,0.00019397,2]
[346377334,1734924639343,-500.0,0.00019397,2]
[346377335,1734924639353,-500.0,0.00019397,2]
[346377336,1734924639362,-500.0,0.00019397,2]
[346377337,1734924639371,-500.0,0.00019397,2]
[346377338,1734924639381,-500.0,0.00019397,2]
[346377339,1734924639390,-870.96,0.00019397,2]
[346377340,1734924639399,-500.0,0.00019397,2]
[346377341,1734924639408,-589.13,0.00019397,2]
[346377342,1734924639418,-504.40981868,0.00019397,2]
[346377343,1734924639427,-512.00522436,0.00019397,2]
[346377344,1734924639436,-500.0,0.00019397,2]
[346377345,1734924639445,-500.0,0.00019397,2]
[346377346,1734924639454,-500.0,0.00019397,2]
[346377347,1734924639463,-425.43105748,0.00019397,2]
[346377348,1734924639472,-500.0,0.00019397,2]
[346377349,1734924639481,-500.0,0.00019397,2]
[346377350,1734924639490,-393.97509725,0.00019397,2]
[346377351,1734924639499,-1153.97,0.00019397,2]
[346377352,1734924639509,-500.0,0.00019397,2]
[346377353,1734924639519,-500.0,0.00019397,2]
[346377354,1734924639529,-500.0,0.00019397,2]
[346377355,1734924639542,-500.0,0.00019397,2]
[346377356,1734924639551,-560.25,0.00019397,2]
[346377357,1734924639560,-721.28,0.00019397,2]
[346377358,1734924639574,-500.0,0.00019397,2]
[346377359,1734924639583,-500.0,0.00019397,2]
[346377360,1734924639593,-878.66,0.00019397,2]
[346377361,1734924639601,-500.0,0.00019397,2]
[346377362,1734924639611,-500.0,0.00019397,2]
[346377363,1734924639621,-500.0,0.00019397,2]
[346377364,1734924639631,-500.0,0.00019397,2]
[346377365,1734924639640,-2093.3091495,0.00019397,2]
[346377366,1734924639653,-16.4809475,0.00019397,2]
[346377367,1734924639662,-500.0,0.00019397,2]
[346377368,1734924639672,-150.622576,0.00019397,2]
[346377369,1734924639680,-1713.349767,0.00019397,2]
[346377370,1734924639690,-500.0,0.00019397,2]
[346377371,1734924639699,-500.0,0.00019397,2]
[346377372,1734924639708,-500.0,0.00019397,2]
[346377373,1734924639719,-500.0,0.00019397,2]
[346377374,1734924639729,-500.0,0.00019397,2]
[346377375,1734924639739,-552.42,0.00019397,2]
[346377376,1734924639748,-500.0,0.00019397,2]